[Event "NSV chessemy IM 2022"]
[Site "Braunschweig"]
[Date "2022.08.05"]
[Round "7.2"]
[White "Chennaoui, Yasin"]
[Black "von Mettenheim, Johannes"]
[Result "0-1"]
[ECO "C00"]
[WhiteElo "2127"]
[BlackElo "2253"]
[Annotator "TA"]
[PlyCount "188"]
[EventDate "2022.07.30"]
[EventType "tourn"]
[EventCountry "GER"]
[SourceTitle "playchess.com"]
[Source "ChessBase"]
[SourceQuality "1"]
[TimeControl "40/5400+30:1800+30"]

{[%evp 20,187,0,0,0,-22,-15,-19,-20,-69,-2,-18,22,-29,0,0,4,0,0,0,0,0,80,88,122,33,40,21,419,390,918,0,0,-83,-83,-83,-83,-83,-83,-83,-83,-83,-83,-83,-75,-75,-75,-115,-75,-75,-75,-75,-75,-75,-75,-75,-75,-75,-75,-75,-75,-139,-75,-75,-75,-75,-75,-75,-67,-67,-47,-54,-54,-54,-47,-89,-89,-89,-89,-89,-89,-89,-89,-89,-89,-89,-89,-89,-89,-89,-89,-89,-89,-89,-89,-89,-89,-89,-89,-89,-89,-9815,-89,-8785,-7437,-2732,0,-89,0,-5118,-5998,-4713,-3704,-29962,-11285,-29968,-29970,-29969,-29970,-29975,-29976,-29976,-29977,-29979,-29979,-29979,-29980,-29978,-29979,-29980,-29981,-29984,-29980,-29980,-29981,-29981,-29982,-29982,-29983,-29983,-29984,-29984,-29985,-29985,-29986,-29987,-29988,-29988,-29989,-29989,-29990,-29990,-29991,-29991,-29992,-29992,-29993,-29993,-29994,-29994,-29995,-29995,-29996,-29996,-29997,-29997,-29997,-29998,-29999,-29999]} 1. Nf3 {[%emt 0:00:06]} Nf6 {[%emt 0:00:11]} 2. g3 {[%emt 0:01:11]} e6 {[%emt 0:00:12]} 3. Bg2 {[%emt 0:00:07]} d5 {[%emt 0:00:07]} 4. O-O {[%emt 0:00:06]} Be7 {[%emt 0:02:03]} 5. d3 {[%emt 0:06:52]} c5 {[%emt 0:00:59]} 6. Nbd2 {[%emt 0:00:27]} Nc6 {[%emt 0:00:19]} 7. e4 {[%emt 0:00:28]} b6 {[%emt 0:00:23]} 8. Re1 {[%emt 0:00:53]} Bb7 {[%emt 0:02:08]} 9. c3 {[%emt 0:14:15]} Qc7 {[%emt 0:04:54]} 10. Qe2 {[%emt 0:03:31]} h6 {[%emt 0:07:38]} 11. a3 {[%emt 0:13:44]} O-O {[%emt 0:03:37] C00: French: Unusual White 2nd moves.} 12. e5 {[%emt 0:09:08]} (12. b4 $5) 12... Nd7 {[%emt 0:00:17]} 13. h4 {[%emt 0:04:50]} b5 {[%emt 0:05:38] [#] The position is equal.} 14. h5 $146 {[%emt 0:06:38]} (14. Nf1 $11 {is more appropriate.}) ({Predecessor:} 14. Nf1 a5 15. Bf4 b4 16. N1h2 Kh7 17. Ng4 Qd8 18. Qd2 Rg8 19. Bxh6 Qf8 20. Bg5 {1-0 (42) Hoyer,H (2078)-Dubreuil,R (1927) Belfort 2010}) 14... d4 {[%emt 0:08:31]} (14... Rfb8 $15) 15. cxd4 $11 {[%emt 0:01:48]} cxd4 {[%emt 0:07:51]} 16. Nb3 {[%emt 0:03:38]} (16. Ne4 $142 $1) 16... Rfd8 {[%emt 0:01:56]} 17. Bf4 {[%emt 0:01:14]} a5 {[%emt 0:05:55]} 18. Rac1 {[%emt 0:05:30]} Qb6 {[%emt 0:01:11]} 19. g4 {[%emt 0:00:57]} Rdc8 {[%emt 0:06:29]} 20. Nbd2 {[%emt 0:14:14]} Qd8 {[%emt 0:02:56]} (20... Nc5 $11 {keeps the balance.}) 21. Ne4 $16 {[%emt 0:01:08]} b4 {[%emt 0:01:18]} 22. g5 {[%emt 0:07:13]} (22. Nd6 $16 Bxd6 23. exd6) 22... hxg5 {[%emt 0:01:11]} 23. Nexg5 {[%emt 0:00:33]} Ndxe5 $2 {[%emt 0:11:57][%mdl 8192]} 24. Nxe5 $18 {[%emt 0:01:32]} ({Weaker is} 24. Nxe6 Nxf3+ 25. Bxf3 Qd7 $16) 24... Bxg5 $2 {[%emt 0:00:49]} (24... Nxe5 25. Bxb7 Rxc1 26. Bxc1 Bxg5 27. Qxe5 Bf6) 25. Bxc6 $2 {[%emt 0:02:11]} ({White must play} 25. Nxf7 $1 $18 Qe7 26. Nxg5) 25... Bxf4 $11 {[%emt 0:01:13]} 26. Bxb7 {[%emt 0:00:04]} Rxc1 $17 {[%emt 0:01:01] Really sharp!} 27. Rxc1 {[%emt 0:00:20]} Bxc1 {[%emt 0:00:27]} 28. Nxf7 {[%emt 0:01:01][%mdl 64] Decoy} Kxf7 {[%emt 0:02:05]} 29. Qf3+ {[%emt 0:00:00]} Qf6 $1 {[%emt 0:00:21]} 30. Bxa8 {[%emt 0:00:01]} Qxf3 {[%emt 0:00:25]} ({But not} 30... Bxb2 $6 31. Qb7+ Kg8 32. axb4 $11) 31. Bxf3 {[%emt 0:00:02]} bxa3 {[%emt 0:01:04]} 32. bxa3 {[%emt 0:00:01]} Bxa3 {[%emt 0:00:07][%mdl 4096] Endgame KB-KB} 33. Kf1 {[%emt 0:00:45]} Bb4 {[%emt 0:00:48]} 34. Bc6 {[%emt 0:02:16]} Kf6 {[%emt 0:00:50]} 35. Ke2 {[%emt 0:00:08]} Ke5 {[%emt 0:00:38]} 36. Kd1 {[%emt 0:00:50]} Kf4 {[%emt 0:05:09]} 37. Ke2 {[%emt 0:00:37]} Be7 {[%emt 0:00:27]} 38. Kd2 {[%emt 0:00:37]} Bg5 {[%emt 0:00:47]} 39. Ke2 {[%emt 0:00:28]} Ke5 {[%emt 0:00:06]} 40. Kd1 {[%emt 0:00:23]} (40. Kf3 $142) 40... Bh4 {[%emt 0:00:24]} (40... Kd6 $142 41. Be8 Kc5) 41. f3 {[%emt 0:05:30]} Kd6 {[%emt 0:00:31]} 42. Be8 {[%emt 0:00:17]} Kc5 {[%emt 0:00:30]} 43. Kc2 {[%emt 0:00:15]} Kb4 {[%emt 0:00:08]} 44. f4 $1 {[%emt 0:02:32]} Kc5 {[%emt 0:00:59]} 45. Bd7 {[%emt 0:00:07]} Kd6 {[%emt 0:00:43]} 46. Bc8 {[%emt 0:00:02]} Ke7 {[%emt 0:00:47]} 47. f5 {[%emt 0:00:26] [#]} e5 $1 {[%emt 0:00:09]} 48. Bb7 {[%emt 0:00:37]} Kf6 {[%emt 0:02:16]} 49. Be4 {[%emt 0:01:05]} Kg5 {[%emt 0:01:15]} 50. Kb3 {[%emt 0:00:52]} Kxh5 {[%emt 0:00:16]} 51. Ka4 {[%emt 0:02:52]} Be1 {[%emt 0:00:38]} 52. Kb5 {[%emt 0:01:16]} Kg5 {[%emt 0:00:48]} 53. Ka4 {[%emt 0:00:11]} Bb4 {[%emt 0:01:10]} 54. Kb5 {[%emt 0:00:08]} Kf4 {[%emt 0:00:54]} 55. Kc4 {[%emt 0:00:43]} Be7 {[%emt 0:00:39] Hoping for ...a4.} 56. Kb5 {[%emt 0:00:22]} Bd8 {[%emt 0:00:07]} 57. Ka4 {[%emt 0:03:30]} Ke3 {[%emt 0:00:34]} 58. Kb5 {[%emt 0:01:36]} Kd2 {[%emt 0:00:08]} 59. Kc4 {[%emt 0:03:40]} Kc2 {[%emt 0:01:29]} 60. Bc6 $2 {[%emt 0:01:16][%mdl 8192]} (60. Kb5 $17) 60... Bc7 $2 {[%emt 0:00:32]} (60... Be7 $19 61. Bb5 Kd2) 61. Ba4+ $2 {[%emt 0:02:49][%mdl 8192]} (61. Be4 $17) 61... Kd2 $19 {[%emt 0:01:53]} 62. Bc6 {[%emt 0:00:07] [#]} Bd8 $2 {[%emt 0:00:23]} (62... Bd6 $1 $19 {[%cal Rd6f8] and Black stays clearly on top. And now ...Bf8 would win.} 63. Bb5 Ke3) 63. Be4 $1 $17 {[%emt 0:00:44]} Kc2 $2 {[%emt 0:00:22][%mdl 8192]} (63... Be7 $17 64. Kb5 Bb4) 64. Bc6 $1 $19 {[%emt 0:00:09]} Be7 {[%emt 0:00:06]} 65. Ba4+ {[%emt 0:00:15]} Kd2 {[%emt 0:01:14]} 66. Bc6 {[%emt 0:03:45]} Ke3 {[%emt 0:00:26]} 67. Ba4 {[%emt 0:08:14]} e4 {[%emt 0:08:04] Black mates.} 68. dxe4 {[%emt 0:00:02]} Kxe4 {[%emt 0:00:07]} 69. Bc2+ {[%emt 0:00:22]} Ke3 {[%emt 0:00:21]} 70. Bd1 {[%emt 0:01:27]} d3 {[%emt 0:00:36]} 71. Kc3 {[%emt 0:00:18]} Bf6+ {[%emt 0:00:32]} 72. Kc4 {[%emt 0:00:32]} d2 {[%emt 0:00:10]} 73. Bh5 {[%emt 0:00:36]} Kf2 {[%emt 0:00:07]} 74. Kd3 {[%emt 0:00:29]} Ke1 {[%emt 0:00:06]} 75. Kc2 {[%emt 0:00:03]} a4 {[%emt 0:00:13]} 76. Bf3 {[%emt 0:00:19]} a3 {[%emt 0:00:05]} 77. Kb3 {[%emt 0:01:14]} d1=Q+ {[%emt 0:00:18]} 78. Bxd1 {[%emt 0:00:01]} Kxd1 {[%emt 0:00:07]} 79. Kxa3 {[%emt 0:00:00] KB-KP} Ke2 {[%emt 0:00:22]} 80. Kb4 {[%emt 0:00:03]} Kd3 {[%emt 0:00:12]} 81. Kc5 {[%emt 0:00:05]} Ke4 {[%emt 0:00:05]} 82. Kd6 {[%emt 0:00:07]} Kxf5 {[%emt 0:00:05]} 83. Kd5 {[%emt 0:00:06]} g5 {[%emt 0:03:43]} 84. Kc4 {[%emt 0:00:05]} Ke4 {[%emt 0:01:42]} 85. Kc5 {[%emt 0:00:08]} g4 {[%emt 0:00:50]} 86. Kd6 {[%emt 0:00:02]} g3 {[%emt 0:00:26]} 87. Ke6 {[%emt 0:00:02]} g2 {[%emt 0:00:54]} 88. Kxf6 {[%emt 0:00:02]} g1=Q {[%emt 0:00:27]} 89. Ke6 {[%emt 0:00:03]} Qb6+ {[%emt 0:00:11]} 90. Ke7 {[%emt 0:00:23]} Ke5 {[%emt 0:00:07]} 91. Kf7 {[%emt 0:00:49]} Qf6+ {[%emt 0:00:04]} 92. Kg8 {[%emt 0:00:05]} Qe7 {[%emt 0:00:06]} 93. Kh8 {[%emt 0:00:05]} Kf6 {[%emt 0:00:04][%csl Gf6][%cal Re7g7]} 94. Kg8 {[%emt 0:00:04]} Qg7# {[%emt 0:01:15] What a bad dream for White.  Weighted Error Value: White=0.40/Black=0.42} 0-1

[Event "NSV chessemy IM 2022"]
[Site "Braunschweig"]
[Date "2022.08.05"]
[Round "7.3"]
[White "Fischer, Daniel"]
[Black "Colbow, Collin"]
[Result "1/2-1/2"]
[ECO "B35"]
[WhiteElo "2351"]
[BlackElo "2325"]
[Annotator "TA"]
[PlyCount "55"]
[EventDate "2022.07.30"]
[EventType "tourn"]
[EventCountry "GER"]
[SourceTitle "playchess.com"]
[Source "ChessBase"]
[SourceQuality "1"]
[TimeControl "40/5400+30:1800+30"]

{[%evp 14,55,25,20,27,0,31,0,0,0,0,0,0,0,0,0,0,0,0,0,0,0,0,0,0,0,0,-18,-8,-8,-8,-8,-8,-8,-8,-12,-6,-12,-6,-8,-3,-16,-16,-16]} 1. e4 {[%emt 0:00:04]} c5 {[%emt 0:00:03]} 2. Nf3 {[%emt 0:00:06]} Nc6 {[%emt 0:00:05]} 3. d4 {[%emt 0:00:12]} cxd4 {[%emt 0:00:05]} 4. Nxd4 {[%emt 0:00:05]} g6 {[%emt 0:00:04]} 5. Nc3 {[%emt 0:00:35]} Bg7 {[%emt 0:00:05]} 6. Be3 {[%emt 0:00:31]} Nf6 {[%emt 0:00:06]} 7. Bc4 {[%emt 0:00:21]} O-O {[%emt 0:00:13]} 8. Bb3 {[%emt 0:00:28]} Re8 {[%emt 0:00:12] B35: Sicilian: Accelerated Dragon with 5 Nc3: main line.} 9. h4 {[%emt 0:01:10][%cal Oh4h5]} d5 {[%emt 0:00:29]} 10. Nxc6 {[%emt 0:12:52]} (10. exd5 {seems wilder.} Na5 11. Qd2 Nxb3 12. Nxb3 e6 13. d6) 10... bxc6 {[%emt 0:00:11] The position is equal.} 11. exd5 {[%emt 0:00:26]} cxd5 {[%emt 0:10:13]} 12. Nxd5 {[%emt 0:00:14]} Nxd5 {[%emt 0:26:07]} 13. Qxd5 {[%emt 0:00:15]} Qxd5 {[%emt 0:03:22]} 14. Bxd5 {[%emt 0:00:05]} Bxb2 {[%emt 0:19:48] [#]} 15. Rb1 $146 {[%emt 0:25:25]} ({Predecessor:} 15. Bxa8 Bxa1 16. O-O Bf6 17. Bd5 e6 18. Bb3 Bxh4 19. Bxa7 Bb7 20. Rd1 Bc6 21. Rd6 Ra8 22. Bd4 Be8 23. Bc4 Ra4 {½-½ (23) Cruzado Duenas,C (2563)-Windhausen,G (2545) ICCF email 2017}) 15... Bc3+ {[%emt 0:01:19]} 16. Kf1 {[%emt 0:10:18]} Rb8 {[%emt 0:08:15]} 17. Rxb8 {[%emt 0:14:38]} ({Not} 17. Bxf7+ $2 Kxf7 18. Ke2 Bf5 $19) 17... Ba6+ {[%emt 0:00:07][%mdl 64] [#] Discovered Attack} 18. Kg1 {[%emt 0:00:07]} Rxb8 {[%emt 0:00:05]} 19. Kh2 {[%emt 0:04:41]} Rd8 {[%emt 0:08:47]} 20. Rd1 {[%emt 0:04:06][%cal Od5f7] Bxf7+! is the strong threat.} e6 {[%emt 0:01:07]} 21. Bf3 {[%emt 0:00:07]} Rxd1 {[%emt 0:00:18]} 22. Bxd1 $11 {[%emt 0:00:04][%mdl 4096] Endgame KBB-KBB} Bc4 {[%emt 0:00:08]} 23. Bxa7 {[%emt 0:00:48]} Bxa2 {[%emt 0:00:07]} 24. g3 {[%emt 0:08:41]} e5 {[%emt 0:04:12]} 25. Kg2 {[%emt 0:00:36]} f5 {[%emt 0:02:53]} 26. Kf3 {[%emt 0:01:30]} Kf7 {[%emt 0:00:18]} 27. Ke3 {[%emt 0:00:46]} Bc4 {[%emt 0:00:19]} 28. Bf3 {[%emt 0:03:26] An even fight not without its subleties.  Weighted Error Value: White=0.07 (flawless) /Black=0.04 (flawless)} 1/2-1/2

[Event "NSV chessemy IM 2022"]
[Site "Braunschweig"]
[Date "2022.08.05"]
[Round "7.4"]
[White "Sumets, Andrey"]
[Black "Knuedel, Torben"]
[Result "1/2-1/2"]
[ECO "E02"]
[WhiteElo "2542"]
[BlackElo "2210"]
[Annotator "TA"]
[PlyCount "84"]
[EventDate "2022.07.30"]
[EventType "tourn"]
[EventCountry "GER"]
[SourceTitle "playchess.com"]
[Source "ChessBase"]
[SourceQuality "1"]
[TimeControl "40/5400+30:1800+30"]

{[%evp 15,84,42,37,12,27,0,29,12,20,0,18,14,33,25,26,36,31,33,28,37,29,22,29,26,24,30,73,73,98,109,153,21,21,26,31,13,13,13,13,0,0,0,0,0,0,0,0,0,10,0,36,0,0,0,0,0,0,0,0,0,0,0,0,0,0,0,0,0,0,0,0]} 1. d4 {[%emt 0:00:02]} Nf6 {[%emt 0:00:06]} 2. c4 {[%emt 0:00:04]} e6 {[%emt 0:00:03]} 3. Nf3 {[%emt 0:00:09]} d5 {[%emt 0:00:08]} 4. g3 {[%emt 0:00:42]} Be7 {[%emt 0:00:05]} 5. Bg2 {[%emt 0:00:04]} dxc4 {[%emt 0:00:07]} 6. Qa4+ {[%emt 0:01:53]} Bd7 {[%emt 0:00:15]} 7. Qxc4 {[%emt 0:00:07]} Bc6 {[%emt 0:00:08]} 8. O-O {[%emt 0:00:23]} O-O {[%emt 0:00:04]} 9. Nbd2 {[%emt 0:05:25] E02: Open Catalan: 5 Qa4+.} Na6 {[%emt 0:08:57] [#]} 10. Qc2 $146 {[%emt 0:05:56]} ({Predecessor:} 10. a3 Bd5 11. Qd3 c5 12. e4 Bc6 13. Re1 Rc8 14. e5 Nd5 15. Ne4 h6 16. g4 {0-1 (27) Laznicka,V (2668)-Huschenbeth,N (2586) Germany 2018}) 10... Nb4 {[%emt 0:05:26]} 11. Qd1 {[%emt 0:02:54] White has an edge.} Bd5 {[%emt 0:16:24]} 12. a3 {[%emt 0:04:03]} Na6 {[%emt 0:00:38]} 13. b4 {[%emt 0:02:57]} Ne4 {[%emt 0:05:38]} 14. Qc2 {[%emt 0:02:05]} Nxd2 {[%emt 0:02:02]} 15. Bxd2 {[%emt 0:00:25] [#] b5 is the strong threat.} f5 {[%emt 0:01:32]} 16. b5 $36 {[%emt 0:15:31][%mdl 2048] White is pushing.} Nb8 {[%emt 0:00:10]} 17. Ba5 {[%emt 0:00:11]} b6 {[%emt 0:01:31]} 18. Bb4 {[%emt 0:00:04]} c6 {[%emt 0:04:55]} 19. Bxe7 {[%emt 0:00:27]} Qxe7 {[%emt 0:00:03]} 20. a4 {[%emt 0:00:59]} Be4 {[%emt 0:07:09]} 21. Qc3 {[%emt 0:08:55]} Nd7 {[%emt 0:01:18]} 22. bxc6 {[%emt 0:00:34]} Rfc8 {[%emt 0:00:28] [#]} 23. c7 {[%emt 0:05:40]} ({White should play} 23. Ne5 $1 $16) 23... Nf6 $11 {[%emt 0:02:04]} 24. Rfc1 {[%emt 0:01:23]} Nd5 {[%emt 0:00:21][%csl LRc3,LRc7]} 25. Qb2 {[%emt 0:11:58]} Rxc7 {[%emt 0:00:39]} 26. Rxc7 {[%emt 0:01:29]} Qxc7 {[%emt 0:00:12]} 27. Ne5 {[%emt 0:01:11] Hoping for Rc1.} Bxg2 {[%emt 0:00:39]} 28. Kxg2 {[%emt 0:00:04]} Rc8 {[%emt 0:02:22]} 29. Nd3 {[%emt 0:05:29]} Qb7 {[%emt 0:09:37] ( -> ...Nf4+)} 30. Kg1 {[%emt 0:00:07]} h6 {[%emt 0:00:40]} 31. a5 {[%emt 0:02:06]} Kh7 {[%emt 0:03:34]} 32. h4 {[%emt 0:00:18]} f4 {[%emt 0:07:22]} 33. Nxf4 {[%emt 0:03:33]} Nxf4 {[%emt 0:00:06] The position is equal.} 34. gxf4 $14 {[%emt 0:00:02][%mdl 4096] Endgame KQR-KQR} Qe4 {[%emt 0:02:31]} 35. axb6 {[%emt 0:05:10]} axb6 {[%emt 0:00:28]} 36. e3 {[%emt 0:01:17]} ({Reject} 36. Qxb6 Qxe2 37. Qb3 Rf8 $17) 36... Rc2 {[%emt 0:04:12]} 37. Qb1 {[%emt 0:00:06]} Qg6+ {[%emt 0:00:54]} 38. Kf1 {[%emt 0:02:05]} Qe4 {[%emt 0:02:31][%cal Re4h1]} 39. Kg1 {[%emt 0:00:25] Prevents Qh1+.} Qg6+ {[%emt 0:00:09]} 40. Kf1 {[%emt 0:00:50]} Qe4 {[%emt 0:05:01][%cal Re4h1]} 41. Kg1 {[%emt 0:30:05] Against Qh1+} Qg6+ {[%emt 0:34:53]} 42. Kf1 {[%emt 0:00:10]} Qe4 {[%emt 0:00:00] Weighted Error Value: White=0.11 (very precise) /Black=0.07 (flawless)} 1/2-1/2

[Event "NSV chessemy IM 2022"]
[Site "Braunschweig"]
[Date "2022.08.05"]
[Round "7.5"]
[White "Sriram, Jha"]
[Black "Pubantz, Jan"]
[Result "1-0"]
[ECO "D02"]
[WhiteElo "2361"]
[BlackElo "2269"]
[Annotator "TA"]
[PlyCount "143"]
[EventDate "2022.07.30"]
[EventType "tourn"]
[EventCountry "GER"]
[SourceTitle "playchess.com"]
[Source "ChessBase"]
[SourceQuality "1"]
[TimeControl "40/5400+30:1800+30"]

{[%evp 9,143,17,15,27,21,28,18,25,18,10,10,10,12,11,11,14,18,10,27,10,17,0,0,-11,0,0,45,41,45,50,43,20,20,10,46,34,38,29,52,35,83,11,11,6,30,40,145,94,101,100,99,86,93,71,62,68,85,49,53,60,164,145,163,147,177,166,166,167,258,157,258,254,237,214,319,319,317,316,298,287,311,294,283,220,225,175,197,157,156,204,182,182,182,182,182,184,177,8,8,1,8,8,8,11,18,18,43,44,1765,416,29964,29965,29964,12368,29966,29964,29975,29974,29976,29977,29977,29973,29968,0,29976,29977,29977,29978,29978,29979,29980,29982,29982,29983,29984,29985]} 1. Nf3 {[%emt 0:00:09]} d5 {[%emt 0:00:03]} 2. g3 {[%emt 0:00:29]} c6 {[%emt 0:00:57]} 3. Bg2 {[%emt 0:00:10]} Bg4 {[%emt 0:00:12]} 4. O-O {[%emt 0:00:34]} Nf6 {[%emt 0:00:57]} 5. d4 {[%emt 0:00:18]} e6 {[%emt 0:00:52]} 6. h3 {[%emt 0:00:15] D02: 1 d4 d5 2 Nf3 sidelines, including 2...Nf6 3 g3 and 2...Nf6 3 Bf4.} Bh5 {[%emt 0:01:50]} 7. c4 {[%emt 0:00:36]} Nbd7 {[%emt 0:04:21]} 8. cxd5 {[%emt 0:00:53] The position is equal.} exd5 {[%emt 0:00:07]} 9. Qb3 {[%emt 0:00:15] 9.Ne5 is more fashionable.} Qb6 {[%emt 0:00:02]} 10. Qe3+ {[%emt 0:00:09]} Be7 {[%emt 0:00:12]} 11. Nh4 {[%emt 0:00:05]} Bg6 {[%emt 0:23:29] Against Nf5} (11... Kf8 {with more complications.} 12. Nf5 Bd8 13. Nc3 h6) 12. Nxg6 {[%emt 0:01:18]} hxg6 {[%emt 0:00:11]} 13. Nc3 {[%emt 0:00:11]} Nf8 {[%emt 0:04:27]} 14. Na4 {[%emt 0:09:02]} Qc7 {[%emt 0:00:43] [#]} 15. Bd2 $146 {[%emt 0:04:16]} ({Predecessor:} 15. Nc5 a5 16. Bd2 N6d7 17. Nd3 Ne6 18. Nf4 Nxf4 19. Qxf4 Qxf4 20. Bxf4 Nf8 21. e4 dxe4 22. Bxe4 {½-½ (43) Tate,A (2306)-Blohberger,F (2459) Skopje 2019}) 15... Ne6 {[%emt 0:01:09][%cal Of6e4]} 16. Rfc1 {[%emt 0:03:02]} Kf8 {[%emt 0:04:48]} 17. b4 {[%emt 0:02:10]} Qd7 {[%emt 0:09:51][%cal Of6e4]} 18. Nc5 {[%emt 0:08:46] Prevents Ne4.} Nxc5 {[%emt 0:05:01]} 19. bxc5 {[%emt 0:00:58]} Ne4 {[%emt 0:03:08]} 20. Bxe4 {[%emt 0:07:53]} dxe4 {[%emt 0:00:46]} 21. Qxe4 {[%emt 0:02:18]} Rd8 {[%emt 0:09:18]} 22. e3 {[%emt 0:33:06]} Qxh3 {[%emt 0:02:03][%cal Oe7c5]} 23. Rab1 {[%emt 0:03:46]} Rd7 {[%emt 0:13:48][%cal Oe7c5]} 24. Rb3 {[%emt 0:00:25]} Rh5 {[%emt 0:01:40]} (24... Kg8 $14) 25. Be1 {[%emt 0:03:31]} (25. Rcb1 $1 $16) 25... Bd8 $11 {[%emt 0:04:18]} 26. Rcb1 {[%emt 0:00:39]} Re7 {[%emt 0:01:30]} 27. Qg2 {[%emt 0:01:41] Qxh3 is the strong threat.} Qxg2+ {[%emt 0:04:21]} (27... Qg4 $14) 28. Kxg2 $16 {[%emt 0:00:01]} b6 {[%emt 0:00:03]} 29. cxb6 {[%emt 0:08:25]} axb6 {[%emt 0:00:14]} 30. Rc1 {[%emt 0:02:49]} Ra7 {[%emt 0:01:59]} 31. a3 {[%emt 0:02:57]} c5 {[%emt 0:01:55]} 32. dxc5 {[%emt 0:00:14]} bxc5 {[%emt 0:00:05]} 33. e4 {[%emt 0:02:28]} Re5 {[%emt 0:01:28]} 34. Rc4 {[%emt 0:00:34]} Ba5 {[%emt 0:01:07]} ({Black should play} 34... Re8 $14) 35. f4 $18 {[%emt 0:00:06]} Re8 {[%emt 0:00:30]} 36. Bf2 {[%emt 0:00:06]} Rd7 {[%emt 0:00:28]} 37. Rxc5 {[%emt 0:01:11]} Ra8 {[%emt 0:00:28]} 38. Rd5 $36 {[%emt 0:01:25][%mdl 2048] White has strong initiative.} Ke8 {[%emt 0:00:36]} (38... Rxd5 $142 39. exd5 Ke8) 39. Re5+ {[%emt 0:00:53]} Re7 {[%emt 0:00:25]} (39... Kf8 $16 40. Kf3 Rc7 41. Bc5+ Kg8) 40. Rxe7+ {[%emt 0:01:03]} Kxe7 {[%emt 0:00:03][%mdl 4096] Endgame KRB-KRB} 41. Rb7+ $1 {[%emt 0:30:06]} Ke6 {[%emt 0:07:08]} (41... Ke8 {keeps fighting.} 42. Bc5 Bd8) 42. Bc5 {[%emt 0:00:00] And now Re7+ would win.} Bd8 {[%emt 0:05:41] Against Re7+} 43. Kf3 {[%emt 0:00:00]} Rc8 {[%emt 0:03:06]} 44. Bb4 {[%emt 0:00:00]} Rc1 {[%emt 0:02:45]} 45. g4 {[%emt 0:00:00]} Bc7 {[%emt 0:03:46]} 46. Ra7 {[%emt 0:00:00]} Rc6 {[%emt 0:03:42]} 47. Ra8 {[%emt 0:00:00]} Bd6 {[%emt 0:02:39]} 48. f5+ {[%emt 0:00:34]} gxf5 {[%emt 0:00:35]} 49. gxf5+ {[%emt 0:00:20]} ({Don't do} 49. exf5+ Kf6 $16) 49... Kf6 {[%emt 0:02:27]} 50. Bxd6 {[%emt 0:01:02]} Rxd6 {[%emt 0:00:06] KR-KR} 51. Kf4 {[%emt 0:00:03] White threatens e5+ and mate.} g5+ {[%emt 0:01:24]} 52. fxg6 $1 {[%emt 0:01:38]} Kxg6 {[%emt 0:00:18] [#]} 53. Rg8+ $2 {[%emt 0:00:10]} (53. a4 $1 $18 {[%cal Ra4a5]}) 53... Kh7 $11 {[%emt 0:00:45]} 54. Rg3 {[%emt 0:00:52]} Ra6 {[%emt 0:00:58]} 55. Ke5 {[%emt 0:00:04]} Re6+ {[%emt 0:00:53]} 56. Kd5 {[%emt 0:00:11] Intending a4 and mate.} Ra6 {[%emt 0:00:13]} 57. Kc5 {[%emt 0:00:27] Hoping for Kb5.} Ra4 {[%emt 0:00:39]} 58. Re3 {[%emt 0:00:21] Black must now prevent Kb5.} Kg6 $2 {[%emt 0:00:26][%mdl 8192] [#]} (58... Ra8 $14) 59. Kb5 $1 $18 {[%emt 0:00:09]} Rd4 {[%emt 0:00:34]} (59... Ra8 $18 60. a4 Kg5) 60. a4 {[%emt 0:00:15]} Rd1 {[%emt 0:01:39]} 61. a5 {[%emt 0:01:00] Threatening mate with Rb3.} Kf6 {[%emt 0:01:15]} 62. Ra3 {[%emt 0:02:14]} Ke5 {[%emt 0:00:33]} 63. Ra4 {[%emt 0:00:20]} Kd6 {[%emt 0:00:29]} 64. a6 {[%emt 0:00:15]} Rb1+ {[%emt 0:00:31]} 65. Kc4 {[%emt 0:01:40]} Rc1+ {[%emt 0:00:28]} 66. Kb5 $2 {[%emt 0:00:56]} (66. Kd4 {mates} Rc8 67. e5+ Kd7 68. a7 Ra8 69. Ke4 Kc6 70. Kf5 Kd7 71. Kf6) 66... Rc5+ $2 {[%emt 0:00:30][%mdl 8192]} (66... Rb1+ $11 67. Rb4 Rg1) 67. Kb6 {[%emt 0:00:15] White mates.} Rc6+ {[%emt 0:00:12]} 68. Kb7 {[%emt 0:00:05]} Rc7+ {[%emt 0:00:42]} 69. Kb8 {[%emt 0:00:08]} Re7 {[%emt 0:00:30]} 70. a7 {[%emt 0:00:33]} Re8+ {[%emt 0:00:35]} 71. Kb7 {[%emt 0:00:01]} Kc5 {[%emt 0:01:06]} 72. a8=Q {[%emt 0:00:46] Weighted Error Value: White=0.15 (very precise) /Black=0.32} 1-0